bitfinex/quotes_SOLUSD_20250903
["timestamp","ask_amount","ask_price","bid_price","bid_amount"]
[1756930880344,4.68754348,209.88,209.84,13.59559401]
[1756930880550,5.36754348,209.88,209.84,13.59559401]
[1756930881136,5.36754348,209.87,209.84,13.59559401]
[1756930882836,9.45244605,209.87,209.84,13.59559401]
[1756930883063,10.13244605,209.87,209.84,13.59559401]
[1756930883276,10.13244605,209.87,209.83,0.03]
[1756930883277,5.36754348,209.86,209.83,0.03]
[1756930883479,26.0,209.88,209.84,0.68]
[1756930883657,4.68754348,209.87,209.84,0.68]
[1756930883854,4.68754348,209.86,209.83,0.03]
[1756930884053,5.36754348,209.86,209.83,0.03]
[1756930884658,4.68754348,209.84,209.83,0.03]
[1756930885572,5.44541098,209.85,209.83,0.03]
[1756930885770,4.68754348,209.84,209.83,0.03]
[1756930886379,5.36754348,209.84,209.83,0.03]
[1756930886674,4.68754348,209.84,209.83,0.03]
[1756930886910,30.68754348,209.84,209.83,0.03]
[1756930887079,36.13307912,209.84,209.83,0.03]
[1756930887452,31.44553564,209.84,209.83,0.03]
[1756930887755,34.44724334,209.84,209.83,0.03]
[1756930890077,31.44553564,209.84,209.83,0.03]
[1756930890266,7.76724334,209.84,209.83,0.03]
[1756930891895,8.44724334,209.84,209.83,0.03]
[1756930893275,0.68,209.84,209.83,0.03]
[1756930893485,5.44553564,209.84,209.83,0.03]
[1756930893893,4.76553564,209.84,209.83,0.03]
[1756930894095,5.44553564,209.84,209.83,0.03]
[1756930894259,41.50534681,209.85,209.83,0.03]
[1756930894578,3.0017077,209.84,209.83,0.03]
[1756930894776,36.74,209.86,209.84,0.68]
[1756930894962,26.0,209.84,209.83,0.03]
[1756930895161,29.0017077,209.84,209.83,0.03]
[1756930896676,29.6817077,209.84,209.83,0.03]
[1756930897576,34.44724334,209.84,209.83,0.03]
[1756930897987,33.76724334,209.84,209.83,0.03]
[1756930900795,34.44724334,209.84,209.83,0.03]
[1756930903184,30.76553564,209.84,209.83,0.03]
[1756930903384,34.44724334,209.84,209.83,0.03]
[1756930903894,44.50724334,209.84,209.83,0.03]
[1756930904887,33.76724334,209.84,209.83,0.03]
[1756930905093,70.50724334,209.84,209.83,0.03]
[1756930906301,70.56724334,209.84,209.83,0.03]
[1756930907190,33.82724334,209.84,209.83,0.03]
[1756930907395,70.56724334,209.84,209.83,0.03]
[1756930916089,71.24724334,209.84,209.83,0.03]
[1756930916489,70.56724334,209.84,209.83,0.03]
[1756930918088,67.56553564,209.84,209.83,0.03]
[1756930918289,70.56724334,209.84,209.83,0.03]
[1756930923495,67.56553564,209.84,209.83,0.03]
[1756930923701,70.56724334,209.84,209.83,0.03]
[1756930923905,62.8,209.84,209.83,0.03]
[1756930924210,65.8017077,209.84,209.83,0.03]
[1756930924815,65.8017077,209.84,209.83,0.73]
[1756930925000,70.56724334,209.84,209.83,0.73]
[1756930925393,70.56724334,209.84,209.83,0.03]
[1756930929120,74.14087423,209.84,209.83,0.03]
[1756930929918,77.71441863,209.84,209.83,0.03]
[1756930934020,77.71680659,209.84,209.83,0.03]
[1756930936926,77.71898515,209.84,209.83,0.03]
[1756930938212,33.21174181,209.84,209.83,0.75]
[1756930938413,72.95344951,209.84,209.83,0.75]
[1756930939024,65.8017077,209.84,209.83,0.75]
[1756930943030,0.06,209.84,209.83,22.11306447]
[1756930944113,0.06,209.84,209.83,24.02296491]
[1756930949147,1e-08,209.84,209.83,50.30728805]
[1756930949310,1e-08,209.84,209.83,50.87917958]
[1756930949511,1e-08,209.84,209.83,26.56118565]
[1756930950221,1e-08,209.87,209.86,59.59559401]
[1756930950545,1e-08,209.87,209.86,111.30423594]
[1756930950755,1e-08,209.87,209.86,113.36150624]
[1756930951553,0.06,209.91,209.9,39.59559401]
[1756930951757,0.06,209.91,209.9,44.27930778]
[1756930952042,0.06,209.91,209.9,44.99930778]
[1756930952242,0.06,209.91,209.9,46.90838784]
[1756930952627,0.06,209.91,209.9,83.62838784]
[1756930952834,0.06,209.91,209.9,46.90838784]
[1756930953034,0.06,209.91,209.9,83.62838784]
[1756930953436,0.06,209.91,209.9,88.39256125]
[1756930954457,0.06,209.91,209.9,166.99256125]
[1756930957336,0.06,209.91,209.9,46.26884748]
[1756930957634,0.74,209.91,209.9,13.59559401]
[1756930959270,10.18766022,209.91,209.87,1.90953574]
[1756930959477,4.68371377,209.88,209.86,0.03]
[1756930959788,4.74371377,209.91,209.87,0.72]
[1756930960356,4.74371377,209.91,209.86,13.62559401]
[1756930960357,5.42371377,209.91,209.86,13.62559401]
[1756930960549,4.74371377,209.91,209.86,14.34559401]
[1756930960954,5.42371377,209.91,209.86,14.34559401]
[1756930961375,0.68,209.9,209.86,13.62559401]
[1756930962783,0.68,209.9,209.86,14.27559401]
[1756930963187,5.36371377,209.9,209.86,14.27559401]
[1756930963484,4.68371377,209.89,209.86,14.27559401]
[1756930963670,4.68371377,209.89,209.86,13.62559401]
[1756930963862,5.36371377,209.89,209.86,13.62559401]
[1756930964064,4.68371377,209.89,209.86,13.62559401]
[1756930964771,5.36371377,209.88,209.86,13.62559401]
[1756930965578,5.36371377,209.88,209.86,0.03]
[1756930965788,4.68371377,209.88,209.86,0.03]
[1756930967173,4.68371377,209.89,209.86,0.03]
[1756930967359,4.68371377,209.89,209.86,0.68]
[1756930968483,0.68,209.88,209.86,0.03]
[1756930968668,5.36371377,209.88,209.86,0.03]
[1756930968872,4.68371377,209.88,209.86,0.03]
[1756930969375,0.06,209.91,209.86,0.03]
[1756930969376,5.50415037,209.91,209.86,0.03]
[1756930969581,4.68371377,209.89,209.86,0.03]
[1756930970089,4.68371377,209.88,209.86,0.03]
[1756930970485,5.36371377,209.88,209.86,0.03]
[1756930971285,0.68,209.87,209.86,0.03]
[1756930971491,5.36371377,209.87,209.86,0.03]
[1756930972587,4.68371377,209.87,209.86,0.03]
[1756930972794,4.68371377,209.88,209.86,0.03]
[1756930973484,0.06,209.91,209.87,0.65]
[1756930973665,0.06,209.91,209.88,0.65]
[1756930973867,4.74371377,209.91,209.87,13.59559401]
[1756930974087,5.42371377,209.91,209.87,13.59559401]
[1756930974285,4.68371377,209.89,209.87,13.59559401]
[1756930974694,4.68371377,209.89,209.86,0.68]
[1756930974885,4.68371377,209.89,209.87,13.59559401]
[1756930975593,4.68371377,209.9,209.87,13.59559401]
[1756930976293,9.44798766,209.9,209.87,13.59559401]
[1756930976498,0.06,209.89,209.87,13.59559401]
[1756930977484,4.74371377,209.89,209.87,13.59559401]
[1756930977788,4.74371377,209.89,209.86,0.03]
[1756930977789,4.68371377,209.88,209.86,0.03]
[1756930978195,5.36371377,209.88,209.86,0.03]
[1756930978571,4.68371377,209.87,209.86,0.03]
[1756930978986,9.4485682,209.87,209.86,0.03]
[1756930979392,9.44839257,209.88,209.86,0.68]
[1756930979690,4.7646788,209.88,209.86,0.68]
[1756930979880,9.44839257,209.88,209.86,0.03]
[1756930981177,9.50815574,209.89,209.86,0.68]
[1756930981698,0.06,209.89,209.88,18.27930778]
[1756930981885,0.06,209.89,209.88,13.59559401]
[1756930982080,0.06,209.89,209.88,14.24559401]
[1756930982894,0.06,209.89,209.88,13.59559401]
[1756930983879,0.06,209.89,209.86,0.68]
[1756930984184,0.06,209.89,209.87,0.65]
[1756930987383,9.50827655,209.89,209.86,0.03]
[1756930987580,9.50827655,209.89,209.86,0.68]
[1756930988001,9.50827655,209.89,209.86,0.03]
[1756930988176,9.50827655,209.89,209.87,0.65]
[1756930989005,9.50827655,209.89,209.86,0.68]
[1756930989383,9.50827655,209.89,209.86,0.03]
[1756930989585,9.50827655,209.89,209.87,0.65]
[1756930989882,9.50827655,209.89,209.86,0.03]
[1756930990105,0.06,209.89,209.88,13.59559401]
[1756930990403,0.06,209.89,209.88,14.24559401]
[1756930991206,0.06,209.89,209.88,18.92930778]
[1756930991504,0.06,209.89,209.88,23.69393518]
[1756930995403,0.06,209.89,209.88,19.01022141]
[1756930996303,0.06,209.89,209.88,23.69393518]
[1756930996709,0.06,209.89,209.88,25.60328863]
[1756931000191,0.06,209.89,209.88,57.61957486]
[1756931000390,0.06,209.89,209.88,57.53866123]
[1756931000586,0.06,209.89,209.88,20.83866123]
[1756931001895,0.06,209.89,209.88,25.60328863]
[1756931002720,0.06,209.89,209.88,20.83866123]
[1756931004219,0.06,209.89,209.88,15.50494746]
[1756931004518,0.06,209.89,209.88,50.96559401]
[1756931005412,0.06,209.89,209.88,55.64930778]
[1756931005811,0.06,209.89,209.88,60.41393518]
[1756931008627,0.06,209.89,209.88,55.62930778]
[1756931010129,0.06,209.89,209.88,60.39393518]
[1756931010907,0.06,209.89,209.88,60.42393518]
[1756931011425,0.06,209.89,209.88,58.73851016]
[1756931019128,0.06,209.89,209.88,60.64786361]
[1756931027135,0.06,209.89,209.88,169.10223078]
[1756931027323,0.06,209.89,209.88,168.5304755]
[1756931027630,0.06,209.89,209.88,165.53218675]
[1756931027834,1e-08,209.89,209.88,165.53218675]
[1756931028143,1e-08,209.89,209.88,142.5304755]
[1756931029922,1e-08,209.91,209.9,39.87991715]
[1756931030134,1e-08,209.91,209.9,80.1299067]
[1756931030438,1e-08,209.91,209.9,80.8499067]
[1756931030741,1e-08,209.91,209.9,82.75871345]
[1756931031041,1e-08,209.91,209.9,87.52288686]
[1756931032025,0.68000001,209.91,209.9,1.90880675]
[1756931032353,0.68000001,209.91,209.9,50.31559401]
[1756931034137,0.68000001,209.91,209.88,0.03]
[1756931034543,2.99828875,209.9,209.88,0.03]
[1756931035022,3.67828875,209.89,209.88,0.03]
[1756931035753,1e-08,209.91,209.89,13.59559401]
[1756931036050,1e-08,209.91,209.9,36.74]
[1756931037024,1e-08,209.91,209.89,13.59559401]
[1756931037223,0.68,209.9,209.88,13.62559401]
[1756931037527,1e-08,209.91,209.89,36.74]
[1756931037733,0.68000001,209.91,209.9,13.59559401]
[1756931038846,8.44223521,209.91,209.88,0.03]
[1756931039050,2.99828875,209.89,209.88,0.03]
[1756931039437,3.67828875,209.89,209.88,0.03]
[1756931040453,0.68,209.89,209.88,0.03]
[1756931040654,3.67828875,209.89,209.88,0.03]
[1756931041031,8.44268915,209.89,209.88,0.03]
[1756931042927,2.99828875,209.9,209.88,0.03]
[1756931043166,0.68,209.89,209.88,0.03]
[1756931046552,1e-08,209.91,209.88,0.03]
[1756931046770,1e-08,209.91,209.9,16.59388276]
[1756931047168,1e-08,209.91,209.9,17.31388276]
[1756931050055,1e-08,209.91,209.9,22.07805617]
[1756931050255,1e-08,209.91,209.9,59.03805617]
[1756931052955,1e-08,209.91,209.9,22.07805617]
[1756931053156,1e-08,209.91,209.9,59.01805617]
[1756931054274,1e-08,209.91,209.9,22.07805617]
[1756931054565,1e-08,209.91,209.9,58.99805617]
[1756931055760,0.68000001,209.91,209.9,13.59559401]
[1756931055952,1e-08,209.91,209.9,50.49559401]
[1756931069370,1e-08,209.91,209.9,51.17559401]
[1756931072681,1e-08,209.91,209.9,58.93805617]
[1756931073571,1e-08,209.91,209.9,60.6236735]
[1756931075483,1e-08,209.91,209.9,55.93976742]
[1756931077486,1e-08,209.91,209.9,55.96976742]
[1756931079684,1e-08,209.91,209.9,19.06976742]
[1756931079888,1e-08,209.91,209.9,55.82976742]
[1756931082987,1e-08,209.91,209.9,60.5136735]
[1756931084677,1e-08,209.91,209.9,62.70698559]
[1756931085865,1e-08,209.91,209.9,62.42266245]
[1756931100186,1e-08,209.91,209.9,62.70698559]
[1756931100392,1e-08,209.91,209.9,63.27868639]
[1756931102706,1e-08,209.91,209.9,62.70698559]
[1756931103403,1e-08,209.91,209.9,25.66266245]
[1756931103712,0.68000001,209.91,209.9,13.62559401]
[1756931103887,0.68000001,209.91,209.9,50.32559401]
[1756931107914,0.68000001,209.91,209.9,13.62559401]
[1756931108207,0.68000001,209.91,209.9,50.32559401]
[1756931108596,1e-08,209.91,209.9,50.32559401]
[1756931109798,1e-08,209.91,209.9,13.62559401]
[1756931109998,0.68000001,209.91,209.9,50.32559401]
[1756931110397,1e-08,209.91,209.9,50.32559401]
[1756931111198,0.68000001,209.91,209.9,50.32559401]
[1756931111817,0.68000001,209.91,209.9,13.62559401]
[1756931112000,0.68000001,209.91,209.9,50.32559401]
[1756931114810,1e-08,209.91,209.9,50.32559401]
[1756931116604,5.36390609,209.91,209.9,13.62559401]
[1756931116799,5.36390609,209.91,209.9,0.03]
[1756931118389,10.12785254,209.91,209.9,0.03]
[1756931124410,5.44394646,209.91,209.9,0.03]
[1756931124612,10.12785254,209.91,209.9,0.03]
[1756931125521,5.36390609,209.91,209.9,0.03]
[1756931126229,10.12785254,209.91,209.9,0.03]
[1756931135017,9.44785254,209.91,209.9,0.03]
[1756931135204,9.44785254,209.91,209.9,0.75]
[1756931135205,4.68390609,209.91,209.9,0.75]
[1756931135405,2.99936613,209.91,209.9,0.75]
[1756931136334,2.99936613,209.91,209.9,0.03]
[1756931137418,2.99936613,209.91,209.9,0.75]
[1756931137814,1e-08,209.91,209.9,0.75]
[1756931139107,2.99936613,209.91,209.9,0.75]
[1756931141732,1e-08,209.91,209.9,0.75]
[1756931148246,2.99936613,209.91,209.9,0.75]
[1756931148543,2.99936613,209.91,209.9,0.03]
[1756931148740,3.66936613,209.91,209.9,0.03]
[1756931149949,8.43331258,209.91,209.9,0.03]
[1756931153023,7.76331258,209.91,209.9,0.03]
[1756931153228,8.43331258,209.91,209.9,0.03]
[1756931154151,45.13331258,209.91,209.9,0.03]
[1756931154729,45.41763572,209.91,209.9,0.03]
[1756931154935,48.98816807,209.91,209.9,0.03]
[1756931155149,50.89834214,209.91,209.9,0.03]
[1756931157958,76.89834214,209.91,209.9,0.03]
[1756931158137,26.0,209.89,209.88,0.03]
[1756931158455,44.56736295,209.89,209.88,0.03]
[1756931158830,45.23736295,209.89,209.88,0.03]
[1756931159260,51.91221111,209.89,209.88,0.03]
[1756931160044,88.61221111,209.89,209.88,0.03]
[1756931161870,88.89653425,209.89,209.87,0.03]
[1756931162165,18.85168609,209.88,209.87,0.03]
[1756931162458,26.0,209.86,209.85,0.03]
[1756931162758,0.28432314,209.85,209.81,0.03]
[1756931163060,39.98368926,209.84,209.81,0.03]
[1756931163843,45.4192249,209.84,209.81,0.03]
[1756931164043,46.65994644,209.84,209.81,0.03]
[1756931167878,9.95994644,209.84,209.81,0.71]
[1756931168046,46.65994644,209.84,209.82,0.68]
[1756931169364,46.65994644,209.84,209.83,0.71]
[1756931169675,41.8944108,209.84,209.83,0.71]
[1756931170245,46.65994644,209.84,209.83,0.71]
[1756931171769,9.95994644,209.84,209.83,0.71]
[1756931171975,43.66058032,209.84,209.83,0.71]
[1756931172201,46.65994644,209.84,209.83,0.71]
[1756931173064,6.96058032,209.84,209.83,0.71]
[1756931173266,46.65994644,209.84,209.83,0.71]
[1756931173449,46.65994644,209.84,209.83,0.03]
[1756931173865,46.65994644,209.84,209.83,0.69]
[1756931174964,9.95994644,209.84,209.83,0.69]
[1756931175259,44.7492249,209.84,209.83,0.69]
[1756931175654,44.46490176,209.84,209.83,0.69]
[1756931177171,6.67575194,209.86,209.83,0.69]
[1756931177483,2.99936612,209.84,209.83,0.69]
[1756931182472,7.76490176,209.84,209.83,0.69]
[1756931183065,2.99936612,209.84,209.83,0.69]
[1756931183266,36.7,209.85,209.83,0.69]
[1756931183468,39.69936612,209.85,209.83,0.69]
[1756931185976,39.69936612,209.85,209.84,0.66]
[1756931186577,44.46467467,209.85,209.84,0.66]
[1756931192362,45.14467467,209.85,209.83,0.03]
[1756931192591,3.67936612,209.84,209.83,0.03]
[1756931192769,2.99936612,209.84,209.83,0.03]
[1756931194090,7.76490176,209.84,209.83,0.69]
[1756931194275,7.76490176,209.84,209.83,0.03]
[1756931195293,7.76490176,209.84,209.83,0.69]
[1756931195472,9.45537691,209.84,209.83,0.69]
[1756931195886,4.76553564,209.84,209.83,0.69]
[1756931196085,41.38984127,209.84,209.83,0.69]
[1756931197491,46.15537691,209.84,209.83,0.69]
[1756931197691,41.38984127,209.84,209.83,0.69]
[1756931197990,4.68984127,209.84,209.83,0.69]
[1756931199496,36.7,209.85,209.83,0.69]
[1756931199696,4.68984127,209.88,209.83,0.69]
[1756931199874,36.76,209.89,209.84,18.28543528]
[1756931200076,38.67026529,209.89,209.85,5.34984127]
[1756931200375,0.06,209.89,209.85,0.66]
[1756931200708,0.06,209.89,209.85,5.34984127]
[1756931200870,0.06,209.89,209.86,0.66]
[1756931203195,0.06,209.89,209.87,4.68984127]
[1756931203497,0.06,209.89,209.88,0.69]
[1756931208998,0.06,209.89,209.86,13.59559401]
[1756931209200,0.06,209.89,209.86,14.28559401]
[1756931210912,0.06,209.89,209.85,13.59559401]
[1756931211202,0.06,209.89,209.85,14.28559401]
[1756931211506,0.06,209.89,209.86,0.69]
[1756931212578,4.68984127,209.87,209.85,0.03]
[1756931212894,4.68984127,209.86,209.85,0.03]
[1756931214705,9.45492275,209.86,209.85,0.03]
[1756931217725,10.13492275,209.86,209.85,0.03]
[1756931218198,9.45492275,209.86,209.85,0.03]
[1756931219513,9.45492275,209.86,209.85,0.72]
[1756931219709,9.45492275,209.86,209.85,0.03]
[1756931220296,4.68984127,209.86,209.85,0.03]
[1756931220514,4.68984127,209.86,209.85,0.72]
[1756931220718,9.45492275,209.86,209.85,0.03]
[1756931221013,4.68984127,209.86,209.85,0.72]
[1756931221218,9.45492275,209.86,209.85,0.03]
[1756931221941,10.13492275,209.86,209.85,0.03]
[1756931222299,12.04537051,209.86,209.85,0.03]
[1756931223120,11.36537051,209.86,209.85,0.03]
[1756931223929,12.32969365,209.86,209.85,0.03]
[1756931228221,26.28432314,209.84,209.83,0.03]
[1756931228425,67.65416441,209.84,209.83,0.03]
[1756931228642,68.33416441,209.84,209.83,0.03]
[1756931228836,70.2451598,209.84,209.83,0.03]
[1756931230915,75.01069544,209.84,209.83,0.03]
[1756931232938,75.01069544,209.84,209.81,0.03]
[1756931233112,4.68984127,209.82,209.81,0.03]
[1756931233307,41.36984127,209.82,209.81,0.03]
[1756931233630,43.96092796,209.82,209.81,0.03]
[1756931234210,48.72691785,209.82,209.81,0.03]
[1756931234912,48.04691785,209.82,209.81,0.03]
[1756931236627,43.64139972,209.82,209.81,0.73]
[1756931236822,48.33124099,209.82,209.81,0.73]
[1756931237225,11.65124099,209.82,209.81,0.73]
[1756931237413,48.33124099,209.82,209.81,0.73]
[1756931238130,11.65124099,209.82,209.81,0.73]
[1756931238424,48.33124099,209.82,209.81,0.73]
[1756931243327,6.67707658,209.82,209.81,0.73]
[1756931243534,4.68984127,209.82,209.81,0.73]
[1756931244038,6.67584756,209.85,209.81,0.73]
[1756931244234,4.68984127,209.83,209.81,0.73]
[1756931246034,41.36984127,209.83,209.81,0.73]
[1756931246339,4.68984127,209.83,209.81,0.73]
[1756931248342,6.76725683,209.86,209.81,0.73]
[1756931248518,36.66,209.85,209.81,0.73]
[1756931250541,41.34984127,209.85,209.81,0.73]
[1756931251142,36.66,209.85,209.81,0.73]
[1756931252440,36.66,209.85,209.81,0.03]
[1756931252441,4.68984127,209.84,209.81,0.03]
[1756931252647,4.68984127,209.84,209.81,0.73]
[1756931252833,4.68984127,209.84,209.81,0.03]
[1756931253020,4.68984127,209.84,209.82,0.7]
[1756931253742,4.68984127,209.83,209.82,0.7]
[1756931255250,4.68984127,209.83,209.81,0.03]
[1756931255549,41.34984127,209.84,209.81,0.03]
[1756931255923,41.34984127,209.84,209.82,0.7]
[1756931257426,39.6611759,209.84,209.82,0.7]
[1756931258249,36.66,209.84,209.83,0.7]
[1756931258851,39.6611759,209.84,209.82,0.7]
[1756931259930,44.42678268,209.84,209.82,0.7]
[1756931260367,3.0011759,209.83,209.82,0.7]
[1756931261157,44.42678268,209.84,209.82,0.7]
[1756931261332,3.0011759,209.83,209.82,0.7]
[1756931263633,7.7669976,209.83,209.81,0.03]
[1756931263936,3.6711759,209.82,209.81,0.03]
[1756931264348,40.3311759,209.82,209.81,0.03]
[1756931264526,54.24109305,209.82,209.81,0.03]
[1756931265528,59.00708294,209.82,209.81,0.03]
[1756931268137,22.34708294,209.82,209.81,0.03]
[1756931268332,59.00708294,209.82,209.81,0.03]
[1756931268656,22.34708294,209.82,209.81,0.03]
[1756931269037,59.00708294,209.82,209.81,0.03]
[1756931272267,22.34708294,209.82,209.81,0.03]
[1756931272433,59.00708294,209.82,209.81,0.03]
[1756931278449,59.00708294,209.82,209.78,0.03]
[1756931278450,26.0,209.79,209.78,0.03]
[1756931278648,65.94549904,209.79,209.78,0.03]
[1756931278944,66.61549904,209.79,209.78,0.03]
[1756931279144,68.52695103,209.79,209.78,0.03]
[1756931280061,42.52695103,209.79,209.78,0.03]
[1756931280446,47.29362246,209.79,209.78,0.03]
[1756931284667,9.96362246,209.79,209.78,0.03]
[1756931284972,46.62362246,209.79,209.78,0.03]
[1756931290076,46.62362246,209.79,209.78,0.73]
[1756931290247,46.62362246,209.79,209.78,0.03]
[1756931295861,35.96362246,209.79,209.78,0.7]
[1756931296156,46.62362246,209.79,209.78,0.7]
[1756931296664,9.96362246,209.79,209.78,0.7]
[1756931296864,46.62362246,209.79,209.78,0.7]
[1756931302658,41.83695103,209.79,209.78,0.7]
[1756931303091,38.55145199,209.79,209.78,0.7]
[1756931303285,41.55262789,209.79,209.78,0.7]
[1756931303880,46.31929932,209.79,209.78,0.7]
[1756931305280,46.31929932,209.79,209.78,0.03]
[1756931305592,46.31929932,209.79,209.78,0.7]
[1756931306984,46.60362246,209.79,209.78,0.03]
[1756931307194,47.28362246,209.79,209.78,0.03]
[1756931311187,46.60362246,209.79,209.78,0.03]
[1756931311497,47.28362246,209.79,209.78,0.03]
[1756931313604,46.60362246,209.79,209.78,0.03]
[1756931317578,47.28362246,209.79,209.78,0.03]
[1756931317797,46.60362246,209.79,209.78,0.03]
[1756931317996,9.96362246,209.79,209.78,0.03]
[1756931318192,46.60362246,209.79,209.78,0.03]
[1756931318505,9.96362246,209.79,209.78,0.03]
[1756931318686,10.64362246,209.79,209.78,0.03]
[1756931319185,47.28362246,209.79,209.78,0.03]
[1756931319584,48.97755019,209.79,209.78,0.03]
[1756931320885,48.29755019,209.79,209.78,0.03]
[1756931321087,48.97755019,209.79,209.78,0.03]
[1756931321995,26.0,209.77,209.76,0.03]
[1756931322317,49.88301822,209.77,209.76,0.03]
[1756931322799,53.45150604,209.77,209.76,0.03]
[1756931323103,58.21863193,209.77,209.76,0.03]
[1756931323412,60.13026661,209.77,209.76,0.03]
[1756931325088,23.49026661,209.77,209.76,0.69]
[1756931325605,60.13026661,209.77,209.76,0.03]
[1756931328412,60.12937763,209.77,209.76,0.03]
[1756931329886,50.73917037,209.77,209.76,0.03]
[1756931330085,60.12937763,209.77,209.76,0.03]
[1756931330386,50.73917037,209.77,209.76,0.03]
[1756931330585,60.12937763,209.77,209.76,0.03]
[1756931330806,23.48937763,209.77,209.76,0.03]
[1756931330995,60.12937763,209.77,209.76,0.03]
[1756931331816,60.12783325,209.77,209.76,0.03]
[1756931332292,23.48783325,209.77,209.76,0.03]
[1756931332497,60.12783325,209.77,209.76,0.03]
[1756931333312,55.43272962,209.77,209.76,0.69]
[1756931340304,60.12783325,209.77,209.76,0.03]
[1756931343307,60.12783325,209.77,209.76,0.69]
[1756931343507,60.12783325,209.77,209.76,0.03]
[1756931344835,55.43272962,209.77,209.76,0.03]
[1756931345008,55.43272962,209.77,209.76,0.69]
[1756931345223,55.41272962,209.77,209.76,0.69]
[1756931347908,60.10783325,209.77,209.76,0.03]
[1756931351632,56.54056211,209.77,209.76,0.03]
[1756931352208,57.22056211,209.77,209.76,0.03]
[1756931352410,56.54056211,209.77,209.76,0.03]
[1756931353810,0.28432314,209.76,209.75,0.03]
[1756931354007,13.24180154,209.76,209.75,0.03]
[1756931354412,13.92180154,209.76,209.75,0.03]
[1756931355025,20.60097213,209.76,209.75,0.03]
[1756931355332,26.0,209.74,209.73,0.03]
[1756931355532,70.88237477,209.74,209.73,0.03]
[1756931355912,77.56423378,209.74,209.73,0.03]
[1756931356741,82.33204154,209.74,209.73,0.03]
[1756931357037,82.33204154,209.74,209.73,0.74]
[1756931358731,82.33336375,209.74,209.73,0.74]
[1756931359849,78.7647704,209.74,209.73,0.74]
[1756931360038,82.33361217,209.74,209.73,0.74]
[1756931365144,41.30283168,209.74,209.73,0.74]
[1756931365347,42.42909354,209.74,209.73,0.74]
[1756931365641,79.04909354,209.74,209.73,0.74]
[1756931369640,37.66128578,209.74,209.73,0.74]
[1756931369944,74.28128578,209.74,209.73,0.74]
[1756931370533,79.04909354,209.74,209.73,0.74]
[1756931372262,32.68185901,209.74,209.73,0.74]
[1756931372440,67.31510363,209.74,209.73,0.74]
[1756931373730,72.11350527,209.74,209.73,0.74]
[1756931375151,35.49350527,209.74,209.73,0.74]
[1756931375324,67.31510363,209.74,209.73,0.74]
[1756931375521,72.11350527,209.74,209.73,0.74]
[1756931376238,67.31510363,209.74,209.73,0.74]
[1756931376443,62.62,209.74,209.73,0.74]
[1756931376650,67.31510363,209.74,209.73,0.74]
[1756931380446,30.69510363,209.74,209.73,0.74]
[1756931380637,67.29510363,209.74,209.73,0.74]
[1756931381452,65.60435947,209.74,209.73,0.74]
[1756931387457,70.40276111,209.74,209.73,0.74]
[1756931388665,29.00435947,209.74,209.73,0.74]
[1756931388954,65.60435947,209.74,209.73,0.74]
[1756931389358,29.00435947,209.74,209.73,0.74]
[1756931390057,65.60435947,209.74,209.73,0.74]
[1756931392947,70.40276111,209.74,209.73,0.74]
[1756931393755,65.60435947,209.74,209.73,0.74]
[1756931395455,70.40276111,209.74,209.73,0.73]
[1756931398248,33.80276111,209.74,209.73,0.73]
[1756931398450,70.40276111,209.74,209.73,0.73]
[1756931398960,33.80276111,209.74,209.73,0.73]
[1756931399154,70.40276111,209.74,209.73,0.73]
[1756931400162,41.39840164,209.74,209.73,0.73]
[1756931400372,36.6,209.74,209.73,0.73]
[1756931400538,3.00435947,209.74,209.73,0.73]